[Event "Early Titled Tuesday Blitz | February 8 2022"]
[White "Hamley, Ryan"]
[Black "Garriga Cazorla, Pere"]
[WhiteFideId "30959497"]
[BlackFideId "32011601"]
[WhiteElo "2474"]
[BlackElo "2458"]
[Result "1-0"]
[Round "03"]
[TimeControl "180+1"]
[Date "2022.02.08"]
[WhiteClock "0:00:18"]
[BlackClock "0:00:20"]

1. d4 {[%clk 0:02:58]}  Nf6 {[%clk 0:02:58]} 2. c4 {[%clk 0:02:58]}  e6 {[%clk 0:02:57]} 3. Nf3 {[%clk 0:02:57]}  c5 {[%clk 0:02:54]} 4. d5 {[%clk 0:02:45]}  exd5 {[%clk 0:02:55]} 5. cxd5 {[%clk 0:02:45]}  d6 {[%clk 0:02:53]} 6. Nc3 {[%clk 0:02:45]}  g6 {[%clk 0:02:53]} 7. e4 {[%clk 0:02:45]}  Bg7 {[%clk 0:02:52]} 8. Bf4 {[%clk 0:02:38]}  O-O {[%clk 0:02:51]} 9. Nd2 {[%clk 0:02:39]}  Nh5 {[%clk 0:02:48]} 10. Be3 {[%clk 0:02:38]}  Nd7 {[%clk 0:02:42]} 11. Be2 {[%clk 0:02:37]}  Nhf6 {[%clk 0:02:40]} 12. Nc4 {[%clk 0:02:33]}  Nb6 {[%clk 0:02:38]} 13. Qd3 {[%clk 0:02:23]}  Nxc4 {[%clk 0:02:33]} 14. Qxc4 {[%clk 0:02:24]}  a6 {[%clk 0:02:30]} 15. a4 {[%clk 0:02:24]}  b5 {[%clk 0:02:28]} 16. Qd3 {[%clk 0:02:13]}  Bd7 {[%clk 0:02:16]} 17. O-O {[%clk 0:02:05]}  c4 {[%clk 0:01:57]} 18. Qc2 {[%clk 0:02:05]}  b4 {[%clk 0:01:54]} 19. Nb1 {[%clk 0:02:05]}  Rc8 {[%clk 0:01:39]} 20. Nd2 {[%clk 0:02:04]}  c3 {[%clk 0:01:36]} 21. bxc3 {[%clk 0:02:04]}  bxc3 {[%clk 0:01:28]} 22. Nb3 {[%clk 0:01:57]}  Re8 {[%clk 0:01:26]} 23. Bd3 {[%clk 0:01:56]}  Ng4 {[%clk 0:01:13]} 24. Bd4 {[%clk 0:01:43]}  Qh4 {[%clk 0:01:14]} 25. h3 {[%clk 0:01:42]}  Ne5 {[%clk 0:01:14]} 26. f4 {[%clk 0:01:19]}  Nxd3 {[%clk 0:01:07]} 27. Qxd3 {[%clk 0:01:19]}  Bxd4+ {[%clk 0:01:01]} 28. Nxd4 {[%clk 0:01:19]}  Qd8 {[%clk 0:00:57]} 29. Rfc1 {[%clk 0:01:17]}  Qa5 {[%clk 0:00:52]} 30. Ra3 {[%clk 0:01:03]}  c2 {[%clk 0:00:49]} 31. Rxc2 {[%clk 0:00:36]}  Rxc2 {[%clk 0:00:42]} 32. Nxc2 {[%clk 0:00:34]}  Qc5+ {[%clk 0:00:30]} 33. Kh2 {[%clk 0:00:31]}  f5 {[%clk 0:00:28]} 34. e5 {[%clk 0:00:23]}  dxe5 {[%clk 0:00:28]} 35. fxe5 {[%clk 0:00:24]}  Rxe5 {[%clk 0:00:28]} 36. Rc3 {[%clk 0:00:24]}  Qxd5 {[%clk 0:00:24]} 37. Qxa6 {[%clk 0:00:20]}  Re2 {[%clk 0:00:21]} 38. Qxe2 {[%clk 0:00:19]}  Bxa4 {[%clk 0:00:20]} 39. Qc4 {[%clk 0:00:18]} 1-0


[Site "https://www.chess.com"]

[Event "Early Titled Tuesday Blitz | February 8 2022"]
[White "Hess, Robert"]
[Black "Beerdsen, Thomas"]
[WhiteFideId "2022036"]
[BlackFideId "1030108"]
[WhiteElo "2557"]
[BlackElo "2585"]
[Result "0-1"]
[Round "03"]
[TimeControl "180+1"]
[Date "2022.02.08"]
[WhiteClock "0:00:02"]
[BlackClock "0:00:33"]

1. b3 {[%clk 0:03:00]}  e5 {[%clk 0:02:58]} 2. Bb2 {[%clk 0:03:01]}  Nc6 {[%clk 0:02:59]} 3. h3 {[%clk 0:03:01]}  Nf6 {[%clk 0:02:58]} 4. e3 {[%clk 0:03:01]}  a6 {[%clk 0:02:58]} 5. d3 {[%clk 0:03:00]}  d5 {[%clk 0:02:58]} 6. Nd2 {[%clk 0:03:00]}  Be6 {[%clk 0:02:57]} 7. Ne2 {[%clk 0:03:00]}  Bc5 {[%clk 0:02:57]} 8. a3 {[%clk 0:02:59]}  Ba7 {[%clk 0:02:58]} 9. g4 {[%clk 0:02:59]}  h5 {[%clk 0:02:57]} 10. g5 {[%clk 0:02:59]}  Nd7 {[%clk 0:02:58]} 11. h4 {[%clk 0:02:59]}  f6 {[%clk 0:02:56]} 12. Rg1 {[%clk 0:02:42]}  Bg4 {[%clk 0:02:52]} 13. Bg2 {[%clk 0:02:35]}  Ne7 {[%clk 0:02:42]} 14. Bf3 {[%clk 0:02:24]}  Ng6 {[%clk 0:02:18]} 15. Bxg4 {[%clk 0:02:17]}  hxg4 {[%clk 0:02:16]} 16. Ng3 {[%clk 0:02:17]}  fxg5 {[%clk 0:01:55]} 17. Qxg4 {[%clk 0:02:13]}  Rxh4 {[%clk 0:01:53]} 18. Qe6+ {[%clk 0:02:08]}  Ne7 {[%clk 0:01:43]} 19. Nf5 {[%clk 0:02:01]}  Rh7 {[%clk 0:01:43]} 20. Rxg5 {[%clk 0:01:37]}  Nf8 {[%clk 0:01:30]} 21. Qxe5 {[%clk 0:01:30]}  g6 {[%clk 0:01:15]} 22. Ng7+ {[%clk 0:01:25]}  Kf7 {[%clk 0:01:15]} 23. Qf6+ {[%clk 0:01:00]}  Kg8 {[%clk 0:01:15]} 24. O-O-O {[%clk 0:00:39]}  d4 {[%clk 0:01:12]} 25. exd4 {[%clk 0:00:25]}  Rxg7 {[%clk 0:01:06]} 26. d5 {[%clk 0:00:24]}  Rh7 {[%clk 0:01:07]} 27. Rdg1 {[%clk 0:00:17]}  Qd6 {[%clk 0:01:03]} 28. Ne4 {[%clk 0:00:17]}  Qxf6 {[%clk 0:00:52]} 29. Nxf6+ {[%clk 0:00:18]}  Kf7 {[%clk 0:00:53]} 30. Nxh7 {[%clk 0:00:13]}  Nxh7 {[%clk 0:00:54]} 31. Re5 {[%clk 0:00:12]}  Nf6 {[%clk 0:00:50]} 32. Rh1 {[%clk 0:00:11]}  Nexd5 {[%clk 0:00:47]} 33. Ree1 {[%clk 0:00:06]}  Nf4 {[%clk 0:00:43]} 34. Bxf6 {[%clk 0:00:05]}  Kxf6 {[%clk 0:00:44]} 35. Rh7 {[%clk 0:00:05]}  Bxf2 {[%clk 0:00:39]} 36. Rf1 {[%clk 0:00:03]}  Be3+ {[%clk 0:00:38]} 37. Kb2 {[%clk 0:00:03]}  Bd4+ {[%clk 0:00:33]} 38. c3 {[%clk 0:00:03]}  Be5 {[%clk 0:00:34]} 39. d4 {[%clk 0:00:02]}  Bd6 {[%clk 0:00:34]} 40. c4 {[%clk 0:00:02]}  g5 {[%clk 0:00:34]} 41. c5 {[%clk 0:00:02]}  Be7 {[%clk 0:00:33]} 42. Re1 {[%clk 0:00:02]}  Nd3+ {[%clk 0:00:32]} 43. Kc3 {[%clk 0:00:02]}  Nxe1 {[%clk 0:00:33]} 0-1


[Site "https://www.chess.com"]

[Event "Early Titled Tuesday Blitz | February 8 2022"]
[White "Hoffmann, Asa"]
[Black "Funderburg, John T"]
[WhiteFideId "2001470"]
[BlackFideId "2004992"]
[WhiteElo "2117"]
[BlackElo "2023"]
[Result "1-0"]
[Round "03"]
[TimeControl "180+1"]
[Date "2022.02.08"]
[WhiteClock "0:01:29"]
[BlackClock "0:00:01"]

1. d4 {[%clk 0:03:00]}  Nf6 {[%clk 0:02:59]} 2. Bg5 {[%clk 0:02:59]}  d5 {[%clk 0:02:58]} 3. Nd2 {[%clk 0:02:54]}  c5 {[%clk 0:02:57]} 4. e3 {[%clk 0:02:54]}  Qb6 {[%clk 0:02:51]} 5. dxc5 {[%clk 0:02:48]}  Qxb2 {[%clk 0:02:41]} 6. Ngf3 {[%clk 0:02:46]}  Ne4 {[%clk 0:02:13]} 7. Nxe4 {[%clk 0:02:34]}  dxe4 {[%clk 0:02:13]} 8. Nd2 {[%clk 0:02:33]}  Nc6 {[%clk 0:02:01]} 9. Be2 {[%clk 0:02:28]}  e5 {[%clk 0:01:52]} 10. O-O {[%clk 0:02:24]}  Bxc5 {[%clk 0:01:43]} 11. Nxe4 {[%clk 0:02:24]}  Qa3 {[%clk 0:01:22]} 12. Qd5 {[%clk 0:02:05]}  Be7 {[%clk 0:00:56]} 13. Bxe7 {[%clk 0:01:53]}  Qxe7 {[%clk 0:00:57]} 14. Bb5 {[%clk 0:01:51]}  O-O {[%clk 0:00:53]} 15. Qd6 {[%clk 0:01:43]}  Qxd6 {[%clk 0:00:21]} 16. Nxd6 {[%clk 0:01:43]}  Rd8 {[%clk 0:00:17]} 17. Rfd1 {[%clk 0:01:41]}  Ne7 {[%clk 0:00:12]} 18. Bc4 {[%clk 0:01:36]}  Be6 {[%clk 0:00:01]} 19. Bxe6 {[%clk 0:01:35]}  fxe6 {[%clk 0:00:02]} 20. Nxb7 {[%clk 0:01:35]}  Rdb8 {[%clk 0:00:01]} 21. Nc5 {[%clk 0:01:34]}  Rb2 {[%clk 0:00:02]} 22. Nxe6 {[%clk 0:01:31]}  Rxc2 {[%clk 0:00:01]} 23. Rac1 {[%clk 0:01:29]} 1-0


[Site "https://www.chess.com"]

[Event "Early Titled Tuesday Blitz | February 8 2022"]
[White "Idrisov, Ildar F"]
[Black "Nazari, Arad"]
[WhiteFideId "4151020"]
[BlackFideId "12577324"]
[WhiteElo "2209"]
[BlackElo "2120"]
[Result "0-1"]
[Round "03"]
[TimeControl "180+1"]
[Date "2022.02.08"]
[WhiteClock "0:00:08"]
[BlackClock "0:00:06"]

1. Nf3 {[%clk 0:03:00]}  Nf6 {[%clk 0:02:59]} 2. b3 {[%clk 0:02:59]}  g6 {[%clk 0:02:59]} 3. Bb2 {[%clk 0:02:59]}  Bg7 {[%clk 0:02:59]} 4. c4 {[%clk 0:02:59]}  O-O {[%clk 0:03:00]} 5. g3 {[%clk 0:02:59]}  c6 {[%clk 0:02:59]} 6. Bg2 {[%clk 0:02:58]}  d5 {[%clk 0:02:58]} 7. O-O {[%clk 0:02:57]}  Nbd7 {[%clk 0:02:57]} 8. d3 {[%clk 0:02:57]}  Re8 {[%clk 0:02:57]} 9. Nbd2 {[%clk 0:02:55]}  e5 {[%clk 0:02:57]} 10. e4 {[%clk 0:02:52]}  d4 {[%clk 0:02:57]} 11. b4 {[%clk 0:02:51]}  a5 {[%clk 0:02:56]} 12. a3 {[%clk 0:02:51]}  Qe7 {[%clk 0:02:53]} 13. Qb3 {[%clk 0:02:49]}  a4 {[%clk 0:02:51]} 14. Qc2 {[%clk 0:02:45]}  b5 {[%clk 0:02:52]} 15. Rac1 {[%clk 0:02:37]}  Nf8 {[%clk 0:02:46]} 16. cxb5 {[%clk 0:02:33]}  cxb5 {[%clk 0:02:47]} 17. Qc7 {[%clk 0:02:32]}  Bh6 {[%clk 0:02:40]} 18. Qxe7 {[%clk 0:02:26]}  Rxe7 {[%clk 0:02:40]} 19. Rc5 {[%clk 0:02:25]}  Rb8 {[%clk 0:02:30]} 20. Rxe5 {[%clk 0:02:20]}  Rxe5 {[%clk 0:02:28]} 21. Nxe5 {[%clk 0:02:20]}  Bxd2 {[%clk 0:02:28]} 22. Bxd4 {[%clk 0:02:15]}  Ne6 {[%clk 0:02:21]} 23. Nc6 {[%clk 0:02:13]}  Nxd4 {[%clk 0:02:03]} 24. Nxb8 {[%clk 0:02:12]}  Be6 {[%clk 0:01:06]} 25. e5 {[%clk 0:01:48]}  Ng4 {[%clk 0:01:05]} 26. Nc6 {[%clk 0:01:44]}  Nxc6 {[%clk 0:00:21]} 27. Bxc6 {[%clk 0:01:43]}  Nxe5 {[%clk 0:00:20]} 28. Bxb5 {[%clk 0:01:41]}  Nf3+ {[%clk 0:00:20]} 29. Kg2 {[%clk 0:01:39]}  Bd5 {[%clk 0:00:21]} 30. Bxa4 {[%clk 0:01:20]}  Nd4+ {[%clk 0:00:11]} 31. f3 {[%clk 0:01:18]}  g5 {[%clk 0:00:11]} 32. h3 {[%clk 0:01:16]}  h5 {[%clk 0:00:11]} 33. g4 {[%clk 0:01:16]}  hxg4 {[%clk 0:00:10]} 34. hxg4 {[%clk 0:01:16]}  f5 {[%clk 0:00:11]} 35. Bd7 {[%clk 0:01:16]}  f4 {[%clk 0:00:09]} 36. Bf5 {[%clk 0:01:10]}  Nc2 {[%clk 0:00:09]} 37. Rb1 {[%clk 0:01:04]}  Nxa3 {[%clk 0:00:09]} 38. Rb2 {[%clk 0:01:01]}  Bc3 {[%clk 0:00:09]} 39. Re2 {[%clk 0:00:59]}  Bxb4 {[%clk 0:00:09]} 40. Be6+ {[%clk 0:00:59]}  Bxe6 {[%clk 0:00:09]} 41. Rxe6 {[%clk 0:00:59]}  Kf7 {[%clk 0:00:09]} 42. Re5 {[%clk 0:00:57]}  Be7 {[%clk 0:00:09]} 43. Kf2 {[%clk 0:00:53]}  Nc2 {[%clk 0:00:09]} 44. Rf5+ {[%clk 0:00:49]}  Ke6 {[%clk 0:00:09]} 45. Ra5 {[%clk 0:00:47]}  Ne3 {[%clk 0:00:08]} 46. Ra6+ {[%clk 0:00:47]}  Ke5 {[%clk 0:00:07]} 47. Ke2 {[%clk 0:00:44]}  Nd5 {[%clk 0:00:07]} 48. Ra5 {[%clk 0:00:44]}  Bb4 {[%clk 0:00:07]} 49. Rb5 {[%clk 0:00:43]}  Bc3 {[%clk 0:00:08]} 50. Rc5 {[%clk 0:00:42]}  Bd4 {[%clk 0:00:08]} 51. Rb5 {[%clk 0:00:39]}  Be3 {[%clk 0:00:09]} 52. Ra5 {[%clk 0:00:38]}  Kd4 {[%clk 0:00:09]} 53. Ra4+ {[%clk 0:00:38]}  Kc5 {[%clk 0:00:10]} 54. Rc4+ {[%clk 0:00:38]}  Kd6 {[%clk 0:00:10]} 55. Rc8 {[%clk 0:00:36]}  Nf6 {[%clk 0:00:06]} 56. Rf8 {[%clk 0:00:35]}  Ke6 {[%clk 0:00:06]} 57. Rb8 {[%clk 0:00:34]}  Nd7 {[%clk 0:00:06]} 58. Rg8 {[%clk 0:00:33]}  Kf6 {[%clk 0:00:04]} 59. Rd8 {[%clk 0:00:33]}  Ne5 {[%clk 0:00:05]} 60. Rd6+ {[%clk 0:00:31]}  Ke7 {[%clk 0:00:05]} 61. Ra6 {[%clk 0:00:31]}  Kf7 {[%clk 0:00:04]} 62. Ra5 {[%clk 0:00:29]}  Ke6 {[%clk 0:00:04]} 63. Ra6+ {[%clk 0:00:29]}  Kd5 {[%clk 0:00:04]} 64. Ra8 {[%clk 0:00:28]}  Nc6 {[%clk 0:00:03]} 65. Rg8 {[%clk 0:00:27]}  Nd4+ {[%clk 0:00:04]} 66. Kf1 {[%clk 0:00:25]}  Nxf3 {[%clk 0:00:05]} 67. Rg6 {[%clk 0:00:23]}  Kd4 {[%clk 0:00:03]} 68. Ke2 {[%clk 0:00:20]}  Ng1+ {[%clk 0:00:03]} 69. Kf1 {[%clk 0:00:20]}  Kxd3 {[%clk 0:00:04]} 70. Rxg5 {[%clk 0:00:20]}  Nf3 {[%clk 0:00:04]} 71. Rg8 {[%clk 0:00:19]}  Ke4 {[%clk 0:00:04]} 72. g5 {[%clk 0:00:18]}  Nd2+ {[%clk 0:00:04]} 73. Ke1 {[%clk 0:00:16]}  f3 {[%clk 0:00:05]} 74. Rf8 {[%clk 0:00:15]}  Bf4 {[%clk 0:00:03]} 75. Rxf4+ {[%clk 0:00:13]}  Kxf4 {[%clk 0:00:04]} 76. g6 {[%clk 0:00:14]}  Ke3 {[%clk 0:00:02]} 77. g7 {[%clk 0:00:08]}  f2+ {[%clk 0:00:03]} 78. Kd1 {[%clk 0:00:08]}  f1=Q+ {[%clk 0:00:04]} 79. Kc2 {[%clk 0:00:08]}  Qb1+ {[%clk 0:00:05]} 80. Kc3 {[%clk 0:00:08]}  Qb3# {[%clk 0:00:06]} 0-1


[Site "https://www.chess.com"]

[Event "Early Titled Tuesday Blitz | February 8 2022"]
[White "Iskusnyh, Sergei"]
[Black "Kukula, Pawel"]
[WhiteFideId "4120027"]
[BlackFideId "1115081"]
[WhiteElo "2492"]
[BlackElo "2203"]
[Result "1-0"]
[Round "03"]
[TimeControl "180+1"]
[Date "2022.02.08"]
[WhiteClock "0:00:17"]
[BlackClock "0:00:02"]

1. d4 {[%clk 0:02:55]}  Nf6 {[%clk 0:02:59]} 2. c4 {[%clk 0:02:54]}  g6 {[%clk 0:02:59]} 3. g3 {[%clk 0:02:52]}  Bg7 {[%clk 0:02:59]} 4. Bg2 {[%clk 0:02:52]}  O-O {[%clk 0:02:59]} 5. Nc3 {[%clk 0:02:51]}  d6 {[%clk 0:02:59]} 6. Nf3 {[%clk 0:02:50]}  Nc6 {[%clk 0:03:00]} 7. O-O {[%clk 0:02:50]}  Bf5 {[%clk 0:03:00]} 8. d5 {[%clk 0:02:46]}  Na5 {[%clk 0:02:59]} 9. Nh4 {[%clk 0:02:42]}  Bd7 {[%clk 0:02:56]} 10. Qd3 {[%clk 0:02:35]}  c5 {[%clk 0:02:55]} 11. b3 {[%clk 0:02:30]}  a6 {[%clk 0:02:55]} 12. Bd2 {[%clk 0:02:29]}  b5 {[%clk 0:02:52]} 13. Rab1 {[%clk 0:02:27]}  b4 {[%clk 0:02:42]} 14. Ne4 {[%clk 0:02:25]}  Nb7 {[%clk 0:02:41]} 15. f4 {[%clk 0:02:13]}  a5 {[%clk 0:02:38]} 16. Nxf6+ {[%clk 0:02:07]}  Bxf6 {[%clk 0:02:38]} 17. e4 {[%clk 0:02:06]}  a4 {[%clk 0:02:37]} 18. Nf3 {[%clk 0:02:03]}  axb3 {[%clk 0:02:37]} 19. axb3 {[%clk 0:02:02]}  Ra2 {[%clk 0:02:36]} 20. Kh1 {[%clk 0:02:00]}  Qc8 {[%clk 0:02:25]} 21. e5 {[%clk 0:01:21]}  Bf5 {[%clk 0:02:23]} 22. Qe3 {[%clk 0:01:21]}  Bg7 {[%clk 0:02:07]} 23. Ra1 {[%clk 0:01:20]}  Rxa1 {[%clk 0:02:07]} 24. Rxa1 {[%clk 0:01:19]}  e6 {[%clk 0:01:53]} 25. Nh4 {[%clk 0:01:11]}  dxe5 {[%clk 0:01:52]} 26. Nxf5 {[%clk 0:01:07]}  exf5 {[%clk 0:01:37]} 27. fxe5 {[%clk 0:01:06]}  Re8 {[%clk 0:01:36]} 28. Ra7 {[%clk 0:00:59]}  Bxe5 {[%clk 0:01:29]} 29. Qf2 {[%clk 0:00:53]}  Nd6 {[%clk 0:01:27]} 30. Be3 {[%clk 0:00:52]}  Bd4 {[%clk 0:01:15]} 31. Bxd4 {[%clk 0:00:52]}  cxd4 {[%clk 0:01:16]} 32. h4 {[%clk 0:00:46]}  Qc5 {[%clk 0:01:14]} 33. Ra6 {[%clk 0:00:45]}  Ne4 {[%clk 0:01:13]} 34. Bxe4 {[%clk 0:00:41]}  Rxe4 {[%clk 0:01:13]} 35. Rc6 {[%clk 0:00:38]}  Qe7 {[%clk 0:01:11]} 36. d6 {[%clk 0:00:37]}  Qe5 {[%clk 0:01:10]} 37. d7 {[%clk 0:00:35]}  Re1+ {[%clk 0:01:01]} 38. Kh2 {[%clk 0:00:34]}  Re2 {[%clk 0:00:13]} 39. d8=Q+ {[%clk 0:00:32]}  Kg7 {[%clk 0:00:13]} 40. Qxd4 {[%clk 0:00:32]}  Qxd4 {[%clk 0:00:10]} 41. Qxe2 {[%clk 0:00:30]}  f4 {[%clk 0:00:10]} 42. Ra6 {[%clk 0:00:25]}  fxg3+ {[%clk 0:00:10]} 43. Kg2 {[%clk 0:00:25]}  h5 {[%clk 0:00:07]} 44. Ra2 {[%clk 0:00:24]}  Kh7 {[%clk 0:00:07]} 45. Qf3 {[%clk 0:00:23]}  f5 {[%clk 0:00:06]} 46. Re2 {[%clk 0:00:21]}  Qa1 {[%clk 0:00:04]} 47. Re7+ {[%clk 0:00:18]}  Kg8 {[%clk 0:00:02]} 48. Qd5+ {[%clk 0:00:18]}  Kh8 {[%clk 0:00:02]} 49. Qd8# {[%clk 0:00:17]} 1-0


[Site "https://www.chess.com"]

[Event "Early Titled Tuesday Blitz | February 8 2022"]
[White "Jakubowski, Krzysztof"]
[Black "Jones, Gawain C B"]
[WhiteFideId "1112848"]
[BlackFideId "409561"]
[WhiteElo "2365"]
[BlackElo "2657"]
[Result "0-1"]
[Round "03"]
[TimeControl "180+1"]
[Date "2022.02.08"]
[WhiteClock "0:01:12"]
[BlackClock "0:01:42"]

1. e4 {[%clk 0:03:00]}  e5 {[%clk 0:02:59]} 2. Nf3 {[%clk 0:03:00]}  Nc6 {[%clk 0:03:00]} 3. Bc4 {[%clk 0:02:59]}  Bc5 {[%clk 0:02:58]} 4. O-O {[%clk 0:02:58]}  Nf6 {[%clk 0:02:58]} 5. d3 {[%clk 0:02:58]}  d6 {[%clk 0:02:58]} 6. Re1 {[%clk 0:02:57]}  Ng4 {[%clk 0:02:56]} 7. Re2 {[%clk 0:02:55]}  Nd4 {[%clk 0:02:53]} 8. Nxd4 {[%clk 0:02:52]}  Bxd4 {[%clk 0:02:51]} 9. c3 {[%clk 0:02:42]}  Qh4 {[%clk 0:02:47]} 10. h3 {[%clk 0:02:23]}  Bxf2+ {[%clk 0:02:42]} 11. Rxf2 {[%clk 0:02:14]}  Qxf2+ {[%clk 0:02:40]} 12. Kh1 {[%clk 0:02:13]}  h5 {[%clk 0:02:22]} 13. Nd2 {[%clk 0:01:42]}  Qg3 {[%clk 0:01:48]} 14. Qa4+ {[%clk 0:01:12]}  Bd7 {[%clk 0:01:42]} 0-1


[Site "https://www.chess.com"]

[Event "Early Titled Tuesday Blitz | February 8 2022"]
[White "Kanyamarala, Tarun"]
[Black "Yeletsky, Ivan"]
[WhiteFideId "45004714"]
[BlackFideId "24180327"]
[WhiteElo "2144"]
[BlackElo "2348"]
[Result "0-1"]
[Round "03"]
[TimeControl "180+1"]
[Date "2022.02.08"]
[WhiteClock "0:00:04"]
[BlackClock "0:00:21"]

1. d4 {[%clk 0:03:00]}  Nf6 {[%clk 0:02:58]} 2. c4 {[%clk 0:02:59]}  c5 {[%clk 0:02:58]} 3. d5 {[%clk 0:02:57]}  b5 {[%clk 0:02:58]} 4. cxb5 {[%clk 0:02:57]}  a6 {[%clk 0:02:58]} 5. bxa6 {[%clk 0:02:58]}  g6 {[%clk 0:02:54]} 6. Nc3 {[%clk 0:02:56]}  Qa5 {[%clk 0:02:54]} 7. a7 {[%clk 0:02:51]}  Rxa7 {[%clk 0:02:53]} 8. Nf3 {[%clk 0:02:50]}  Ne4 {[%clk 0:02:51]} 9. Bd2 {[%clk 0:02:44]}  Nxd2 {[%clk 0:02:51]} 10. Qxd2 {[%clk 0:02:45]}  d6 {[%clk 0:02:51]} 11. e3 {[%clk 0:02:41]}  Bg7 {[%clk 0:02:51]} 12. Bb5+ {[%clk 0:02:38]}  Nd7 {[%clk 0:02:48]} 13. O-O {[%clk 0:02:36]}  O-O {[%clk 0:02:47]} 14. a4 {[%clk 0:02:35]}  Nb6 {[%clk 0:02:38]} 15. Qd3 {[%clk 0:02:26]}  Qb4 {[%clk 0:02:19]} 16. Ra2 {[%clk 0:02:26]}  Bd7 {[%clk 0:02:02]} 17. Rfa1 {[%clk 0:02:10]}  Rfa8 {[%clk 0:02:02]} 18. Bxd7 {[%clk 0:01:37]}  Nxd7 {[%clk 0:02:01]} 19. Nd2 {[%clk 0:01:35]}  Nb6 {[%clk 0:01:52]} 20. Qc2 {[%clk 0:01:11]}  c4 {[%clk 0:01:25]} 21. Ra3 {[%clk 0:01:06]}  Ra5 {[%clk 0:01:18]} 22. e4 {[%clk 0:00:40]}  Nd7 {[%clk 0:00:59]} 23. Nd1 {[%clk 0:00:33]}  Nc5 {[%clk 0:00:44]} 24. Qxc4 {[%clk 0:00:28]}  Qxd2 {[%clk 0:00:44]} 25. b4 {[%clk 0:00:19]}  Bxa1 {[%clk 0:00:41]} 26. bxa5 {[%clk 0:00:17]}  Qe1+ {[%clk 0:00:41]} 27. Qf1 {[%clk 0:00:17]}  Qxf1+ {[%clk 0:00:41]} 28. Kxf1 {[%clk 0:00:18]}  Bb2 {[%clk 0:00:39]} 29. Nxb2 {[%clk 0:00:17]}  Rxa5 {[%clk 0:00:39]} 30. f3 {[%clk 0:00:18]}  f5 {[%clk 0:00:34]} 31. exf5 {[%clk 0:00:13]}  gxf5 {[%clk 0:00:34]} 32. Ke2 {[%clk 0:00:13]}  Kf7 {[%clk 0:00:35]} 33. Kd2 {[%clk 0:00:12]}  Kf6 {[%clk 0:00:35]} 34. Kc3 {[%clk 0:00:11]}  Na6 {[%clk 0:00:25]} 35. Kc4 {[%clk 0:00:08]}  Rc5+ {[%clk 0:00:24]} 36. Kd4 {[%clk 0:00:08]}  Nb4 {[%clk 0:00:24]} 37. Nc4 {[%clk 0:00:04]}  Nc2+ {[%clk 0:00:23]} 38. Kd3 {[%clk 0:00:04]}  Nxa3 {[%clk 0:00:21]} 0-1


[Site "https://www.chess.com"]

[Event "Early Titled Tuesday Blitz | February 8 2022"]
[White "Karavaeva, Olga"]
[Black "Avila Pavas, Santiago"]
[WhiteFideId "4124111"]
[BlackFideId "4437128"]
[WhiteElo "2105"]
[BlackElo "2242"]
[Result "0-1"]
[Round "03"]
[TimeControl "180+1"]
[Date "2022.02.08"]
[WhiteClock "0:00:53"]
[BlackClock "0:00:38"]

1. c4 {[%clk 0:02:12]}  e6 {[%clk 0:02:43]} 2. Nc3 {[%clk 0:02:13]}  d5 {[%clk 0:02:44]} 3. cxd5 {[%clk 0:02:12]}  exd5 {[%clk 0:02:45]} 4. g3 {[%clk 0:02:10]}  c6 {[%clk 0:02:45]} 5. Bg2 {[%clk 0:02:10]}  Nf6 {[%clk 0:02:46]} 6. Nf3 {[%clk 0:02:09]}  Bf5 {[%clk 0:02:46]} 7. O-O {[%clk 0:02:09]}  Be7 {[%clk 0:02:46]} 8. d3 {[%clk 0:02:09]}  O-O {[%clk 0:02:46]} 9. h3 {[%clk 0:02:09]}  h6 {[%clk 0:02:47]} 10. a3 {[%clk 0:02:07]}  Nbd7 {[%clk 0:02:47]} 11. b4 {[%clk 0:02:07]}  Re8 {[%clk 0:02:41]} 12. Bb2 {[%clk 0:02:07]}  Bf8 {[%clk 0:02:39]} 13. Rc1 {[%clk 0:02:07]}  Bh7 {[%clk 0:02:38]} 14. Qd2 {[%clk 0:02:07]}  Nb6 {[%clk 0:02:26]} 15. Rfd1 {[%clk 0:02:03]}  a5 {[%clk 0:02:26]} 16. bxa5 {[%clk 0:02:00]}  Rxa5 {[%clk 0:02:25]} 17. Na2 {[%clk 0:01:55]}  Ra8 {[%clk 0:02:23]} 18. Nb4 {[%clk 0:01:55]}  Na4 {[%clk 0:02:15]} 19. Ba1 {[%clk 0:01:54]}  Qa5 {[%clk 0:02:08]} 20. Rb1 {[%clk 0:01:46]}  Be7 {[%clk 0:02:04]} 21. Nc2 {[%clk 0:01:43]}  Qxd2 {[%clk 0:01:54]} 22. Rxd2 {[%clk 0:01:44]}  Nc5 {[%clk 0:01:47]} 23. Ncd4 {[%clk 0:01:34]}  Rxa3 {[%clk 0:01:40]} 24. Ne5 {[%clk 0:01:26]}  Rea8 {[%clk 0:01:30]} 25. Bb2 {[%clk 0:01:23]}  Ra2 {[%clk 0:01:30]} 26. f4 {[%clk 0:01:21]}  Na4 {[%clk 0:01:26]} 27. Bc1 {[%clk 0:01:20]}  Nc5 {[%clk 0:00:59]} 28. Nb3 {[%clk 0:01:14]}  Ne6 {[%clk 0:00:54]} 29. Rxa2 {[%clk 0:01:01]}  Rxa2 {[%clk 0:00:55]} 30. Kf2 {[%clk 0:01:00]}  Bd6 {[%clk 0:00:41]} 31. Be3 {[%clk 0:00:56]}  Bxe5 {[%clk 0:00:38]} 32. fxe5 {[%clk 0:00:57]}  Bxd3 {[%clk 0:00:39]} 33. Nd2 {[%clk 0:00:53]}  Bxb1 {[%clk 0:00:38]} 0-1


[Site "https://www.chess.com"]